fUST/lending_fUST_20250405
["ID","MTS","AMOUNT","RATE_DAILY","PERIOD"]
[357149135,1743797432466,-500.0,0.00022999,2]
[357149136,1743797432476,-500.0,0.00022999,2]
[357149137,1743797432486,-500.0,0.00022999,2]
[357149138,1743797432496,-500.0,0.00022999,2]
[357149139,1743797432506,-239.61798741,0.00022999,2]
[357149175,1743797438164,-273.7749399,0.000199,2]
[357149177,1743797438174,-260.38201259,0.00022999,2]
[357149179,1743797438184,-500.0,0.00022999,2]
[357149181,1743797438194,-500.0,0.00022999,2]
[357149183,1743797438204,-500.0,0.00022999,2]
[357149185,1743797438214,-500.0,0.00022999,2]
[357149188,1743797438223,-500.0,0.00022999,2]
[357149189,1743797438233,-500.0,0.00022999,2]
[357149192,1743797438243,-500.0,0.00022999,2]
[357149193,1743797438253,-500.0,0.00022999,2]
[357149196,1743797438262,-3428.58511159,0.00023,2]
[357149198,1743797438275,-552.04584582,0.00023,2]
[357149200,1743797438286,-3647.58803284,0.00023,2]
[357149407,1743797440472,-172.99317,0.00013699,2]
[357149408,1743797440483,-29323.68620039,0.00023,2]
[357149409,1743797440493,-500.0,0.00023273,2]
[357149411,1743797440503,-562.49,0.00023273,2]
[357149413,1743797440512,-172.60722701,0.00023273,2]
[357149414,1743797440522,-500.0,0.00023547,2]
[357149416,1743797440531,-153.0,0.00023798,2]
[357149418,1743797440541,-153.0,0.00023798,2]
[357149420,1743797440550,-153.0,0.00023798,2]
[357149422,1743797440560,-153.0,0.00023798,2]
[357149424,1743797440569,-153.0,0.00023798,2]
[357149426,1743797440578,-154.5382903,0.00023798,2]
[357149428,1743797440588,-500.0,0.00023821,2]
[357149430,1743797440598,-1480.0,0.00023847,2]
[357149432,1743797440608,-2259.0,0.00023847,2]
[357149434,1743797440619,-500.0,0.00023873,2]
[357149436,1743797440632,-500.0,0.00023873,2]
[357149439,1743797440642,-643.06,0.0002389,3]
[357149441,1743797440652,-500.0,0.00023899,2]
[357149442,1743797440661,-626.91402655,0.00023899,2]
[357149444,1743797440672,-173.17708104,0.00023899,2]
[357149446,1743797440681,-159245.35354869,0.000239,2]
[357149728,1743797443412,-2311.11792167,0.000239,2]
[357149864,1743797446501,-55414.9859218,0.000239,2]
[357149865,1743797446513,-15764.81001218,0.000239,2]
[357150006,1743798519144,3547.80951398,9e-05,2]
[357150048,1743798632571,-172.998799,0.00013562,2]
[357150049,1743798632581,-172.998799,0.00013699,2]
[357150051,1743798632590,-499.99999801,0.00013998,2]
[357150052,1743798632600,-335.76306195,0.0001583,2]
[357150053,1743798632612,-274.55711772,0.0001583,2]
[357150054,1743798632621,-445.00526454,0.0002,2]
[357150055,1743798632631,-1176.40510385,0.0002,2]
[357150056,1743798632640,-300.0,0.00021736,2]
[357150057,1743798632650,-4137.70354837,0.00021737,2]
[357150058,1743798632662,-3314.29308636,0.00021737,2]
[357150059,1743798632674,-5006.94218911,0.00021737,2]
[357150060,1743798632684,-419.12848707,0.00021737,2]
[357150061,1743798632694,-160.0,0.00021737,2]
[357150062,1743798632703,-160.0,0.00021738,2]
[357150063,1743798632713,-1084.70744395,0.00021828,2]
[357150064,1743798632724,-3945.39657829,0.0002192,2]
[357150065,1743798632734,-500.0,0.0002192,2]
[357150066,1743798632744,-500.0,0.0002192,2]
[357150067,1743798632755,-500.0,0.0002192,2]
[357150068,1743798632765,-500.0,0.0002192,2]
[357150069,1743798632775,-500.0,0.0002192,2]
[357150070,1743798632784,-500.0,0.0002192,2]
[357150071,1743798632794,-502.89,0.0002192,2]
[357150072,1743798632804,-500.0,0.0002192,2]
[357150073,1743798632813,-405.48,0.0002192,2]
[357150074,1743798632823,-500.0,0.0002192,2]
[357150075,1743798632832,-500.0,0.0002192,2]
[357150076,1743798632842,-500.0,0.0002192,2]
[357150077,1743798632851,-12500.0,0.0002192,2]
[357150078,1743798632861,-500.0,0.00021928,2]
[357150079,1743798632871,-500.0,0.00021928,2]
[357150080,1743798632880,-500.0,0.00021928,2]
[357150081,1743798632890,-567.76212293,0.00021928,2]
[357150082,1743798632900,-500.0,0.00021928,2]
[357150083,1743798632909,-12500.0,0.00021929,2]
[357150084,1743798632919,-12500.0,0.00021938,2]
[357150085,1743798632929,-7700.48076663,0.00021947,2]
[357150086,1743798632941,-4799.51923337,0.00021947,2]
[357150087,1743798632950,-12500.0,0.00021955,2]
[357150088,1743798632959,-12500.0,0.00021964,2]
[357150089,1743798632968,-500.0,0.00021973,2]
[357150090,1743798632978,-500.0,0.00021973,2]
[357150091,1743798632987,-163.55268246,0.00021973,2]
[357150092,1743798633001,-500.0,0.00021973,2]
[357150093,1743798633011,-500.0,0.00021973,2]
[357150094,1743798633021,-500.0,0.00021973,2]
[357150095,1743798633031,-500.0,0.00021973,2]
[357150096,1743798633043,-501.70936986,0.00021973,2]
[357150097,1743798633052,-270.796497,0.00021973,2]
[357150098,1743798633063,-500.0,0.00021973,2]
[357150099,1743798633073,-500.0,0.00021973,2]
[357150100,1743798633084,-500.0,0.00021973,2]
[357150101,1743798633094,-500.0,0.00021973,2]
[357150102,1743798633104,-500.0,0.00021973,2]
[357150103,1743798633114,-500.0,0.00021973,2]
[357150104,1743798633124,-500.0,0.00021973,2]
[357150105,1743798633134,-505.91965701,0.00021973,2]
[357150106,1743798633145,-500.0,0.00021973,2]
[357150107,1743798633155,-500.0,0.00021973,2]
[357150108,1743798633165,-500.0,0.00021973,2]
[357150109,1743798633175,-500.0,0.00021973,2]
[357150110,1743798633184,-500.0,0.00021973,2]
[357150111,1743798633194,-500.0,0.00021973,2]
[357150112,1743798633204,-500.0,0.00021973,2]
[357150113,1743798633214,-500.0,0.00021973,2]
[357150114,1743798633224,-12500.0,0.00021973,2]
[357150115,1743798633234,-8065.36829685,0.00021973,2]
[357150116,1743798633243,-500.0,0.00022191,2]
[357150117,1743798633253,-500.0,0.00022191,2]
[357150118,1743798633263,-273.21894603,0.00022191,2]
[357150119,1743798633273,-561.85831572,0.00022193,2]
[357150120,1743798633283,-500.0,0.00022193,2]
[357150121,1743798633292,-500.0,0.00022193,2]
[357150122,1743798633302,-500.0,0.00022193,2]
[357150123,1743798633312,-500.0,0.00022193,2]
[357150124,1743798633321,-500.0,0.00022193,2]
[357150125,1743798633331,-502.89,0.00022193,2]
[357150126,1743798633341,-500.0,0.00022193,2]
[357150127,1743798633351,-500.0,0.00022193,2]
[357150128,1743798633361,-500.0,0.00022193,2]
[357150129,1743798633371,-500.0,0.00022193,2]
[357150130,1743798633381,-499.6359767,0.00022202,2]
[357150131,1743798633391,-701.73652527,0.00022225,2]
[357150132,1743798633409,-500.0,0.00022467,2]
[357150133,1743798633419,-500.0,0.00022467,2]
[357150134,1743798633430,-561.4565944,0.00022467,2]
[357150135,1743798633440,-500.0,0.00022467,2]
[357150136,1743798633450,-500.0,0.00022467,2]
[357150137,1743798633460,-502.89,0.00022467,2]
[357150138,1743798633471,-530.35266513,0.00022467,2]
[357150139,1743798633481,-500.0,0.00022467,2]
[357150140,1743798633491,-500.0,0.00022467,2]
[357150141,1743798633502,-500.0,0.00022467,2]
[357150142,1743798633512,-151.0,0.00022504,2]
[357150143,1743798633522,-151.0,0.00022504,2]
[357150144,1743798633532,-200.0,0.00022504,2]
[357150145,1743798633542,-24900.0,0.00022518,2]
[357150146,1743798633551,-151.0,0.00022518,7]
[357150147,1743798633561,-151.0,0.00022518,7]
[357150148,1743798633570,-193.398538,0.00022518,7]
[357150149,1743798633579,-192.21975,0.00022518,2]
[357150150,1743798633589,-192.21975,0.00022518,2]
[357150151,1743798633599,-151.0,0.00022518,7]
[357150152,1743798633609,-151.0,0.00022518,7]
[357150153,1743798633619,-151.0,0.00022518,7]
[357150154,1743798633628,-263.499513,0.00022518,7]
[357150155,1743798633638,-151.0,0.00022518,7]
[357150156,1743798633648,-151.0,0.00022518,7]
[357150157,1743798633657,-151.0,0.00022518,7]
[357150158,1743798633667,-151.0,0.00022518,7]
[357150159,1743798633676,-737.2027109,0.00022652,2]
[357150160,1743798633686,-781.25,0.00022683,2]
[357150161,1743798633696,-500.0,0.00022741,2]
[357150162,1743798633706,-500.0,0.00022741,2]
[357150163,1743798633716,-500.0,0.00022741,2]
[357150164,1743798633726,-500.0,0.00022741,2]
[357150165,1743798633736,-502.89,0.00022741,2]
[357150166,1743798633746,-500.0,0.00022741,2]
[357150167,1743798633756,-96.41136795,0.00022741,2]
[357150168,1743798633769,-403.58863205,0.00022741,2]
[357150169,1743798633778,-500.0,0.00022741,2]
[357150170,1743798633788,-57.09674906,0.000229,4]
[357150171,1743798633800,-146.60636997,0.000229,4]
[357150172,1743798633809,-500.0,0.00023015,2]
[357150173,1743798633819,-500.0,0.00023015,2]
[357150174,1743798633829,-421.31621303,0.00023015,2]
[357150175,1743798633839,-500.0,0.00023015,2]
[357150176,1743798633848,-502.89,0.00023015,2]
[357150177,1743798633858,-500.0,0.00023015,2]
[357150178,1743798633867,-500.0,0.00023015,2]
[357150179,1743798633877,-500.0,0.00023015,2]
[357150180,1743798633887,-157.687025,0.00023024,7]
[357150181,1743798633896,-157.687025,0.00023024,7]
[357150182,1743798633906,-151.0,0.00023052,2]
[357150183,1743798633915,-1610.7883107,0.00023183,2]
[357150184,1743798633925,-500.0,0.00023289,2]
[357150185,1743798633935,-500.0,0.00023289,2]
[357150186,1743798633944,-500.0,0.00023289,2]
[357150187,1743798633954,-502.89,0.00023289,2]
[357150188,1743798633963,-500.0,0.00023289,2]
[357150189,1743798633974,-500.0,0.00023289,2]
[357150190,1743798633984,-500.0,0.00023289,2]
[357150191,1743798633995,-758.33201996,0.00023298,2]
[357150192,1743798634009,-300.03164883,0.00023369,2]
[357150193,1743798634019,-203.70311879,0.00023554,4]
[357150194,1743798634029,-500.0,0.00023563,2]
[357150195,1743798634040,-500.0,0.00023563,2]
[357150196,1743798634051,-500.0,0.00023563,2]
[357150197,1743798634061,-502.89,0.00023563,2]
[357150198,1743798634071,-500.0,0.00023563,2]
[357150199,1743798634084,-500.0,0.00023563,2]
[357150200,1743798634094,-500.0,0.00023563,2]
[357150201,1743798634104,-420.0,0.00023626,2]
[357150202,1743798634114,-1988.02455042,0.000237,2]
[357150203,1743798634124,-509.18141806,0.00023773,2]
[357150204,1743798634134,-500.0,0.00023773,2]
[357150205,1743798634144,-500.0,0.00023773,2]
[357150206,1743798634154,-500.0,0.00023773,2]
[357150207,1743798634164,-500.0,0.00023773,2]
[357150208,1743798634174,-302.21225267,0.00023773,2]
[357150209,1743798634183,-500.0,0.00023773,2]
[357150210,1743798634193,-500.0,0.00023773,2]
[357150211,1743798634203,-500.0,0.00023773,2]
[357150212,1743798634213,-503.71312488,0.00023773,2]
[357150213,1743798634223,-500.0,0.00023773,2]
[357150214,1743798634233,-503.67973529,0.00023773,2]
[357150215,1743798634243,-500.0,0.00023773,2]
[357150216,1743798634252,-523.04565198,0.00023773,2]
[357150217,1743798634262,-505.78319228,0.00023773,2]
[357150218,1743798634272,-500.0,0.00023773,2]
[357150219,1743798634281,-500.01958862,0.00023773,2]
[357150220,1743798634291,-152.4295787,0.00023773,2]
[357150221,1743798634301,-504.23024117,0.00023773,2]
[357150222,1743798634311,-500.0,0.00023773,2]
[357150223,1743798634320,-500.0,0.00023773,2]
[357150224,1743798634329,-500.0,0.00023773,2]
[357150225,1743798634339,-162.467024,0.00023773,2]
[357150226,1743798634348,-500.0,0.00023773,2]
[357150227,1743798634358,-500.0,0.00023773,2]
[357150228,1743798634367,-274.08344096,0.00023773,2]
[357150229,1743798634376,-500.0,0.00023773,2]
[357150230,1743798634387,-500.0,0.00023773,2]
[357150231,1743798634396,-500.0,0.00023773,2]
[357150232,1743798634406,-500.40199442,0.00023773,2]
[357150233,1743798634415,-500.0,0.00023773,2]
[357150234,1743798634426,-500.0,0.00023773,2]
[357150235,1743798634436,-515.42230131,0.00023773,2]
[357150236,1743798634445,-500.0,0.00023773,2]
[357150237,1743798634455,-511.78491372,0.00023773,2]
[357150238,1743798634464,-500.0,0.00023773,2]
[357150239,1743798634473,-192.21975,0.00023773,2]
[357150240,1743798634483,-192.21975,0.00023773,2]
[357150241,1743798634492,-151.0,0.00023773,7]
[357150242,1743798634502,-232.19227,0.00023773,7]
[357150243,1743798634512,-151.0,0.00023773,7]
[357150244,1743798634522,-151.0,0.00023773,7]
[357150245,1743798634531,-151.0,0.00023773,7]
[357150246,1743798634540,-151.0,0.00023773,7]
[357150247,1743798634549,-21175.90642705,0.00023798,3]
[357150248,1743798634559,-156.90450296,0.00023798,3]
[357150249,1743798634568,-512.03876059,0.00023798,2]
[357150250,1743798634578,-514.07951006,0.00023798,2]
[357150251,1743798634587,-521.07743677,0.00023798,2]
[357150252,1743798634597,-505.18703222,0.00023798,2]
[357150253,1743798634606,-505.78587028,0.00023798,2]
[357150254,1743798634615,-511.32515539,0.00023798,2]
[357150255,1743798634625,-505.8925677,0.00023798,2]
[357150256,1743798634634,-507.99061887,0.00023798,2]
[357150257,1743798634649,-510.2652386,0.00023798,2]
[357150258,1743798634658,-501.61262019,0.00023798,2]
[357150259,1743798634667,-551.05291265,0.00023798,2]
[357150260,1743798634677,-520.72069967,0.00023798,2]
[357150261,1743798634686,-513.04920854,0.00023798,2]
[357150262,1743798634695,-514.91011674,0.00023798,2]
[357150263,1743798634704,-505.49380289,0.00023798,2]
[357150264,1743798634713,-508.64839852,0.00023798,2]
[357150265,1743798634723,-523.54795414,0.00023798,2]
[357150266,1743798634732,-509.0754406,0.00023798,2]
[357150267,1743798634741,-505.18105973,0.00023798,2]
[357150268,1743798634751,-504.3728752,0.00023798,2]
[357150269,1743798634760,-504.13513855,0.00023798,2]
[357150270,1743798634769,-524.60595157,0.00023798,2]
[357150271,1743798634778,-511.67094311,0.00023798,2]
[357150272,1743798634787,-507.4619885,0.00023798,2]
[357150273,1743798634796,-623.92521515,0.00023798,2]
[357150274,1743798634805,-312.77666495,0.00023798,2]
[357150275,1743798634815,-504.3665254,0.00023798,2]
[357150276,1743798634824,-505.11017279,0.00023798,2]
[357150277,1743798634834,-509.3380647,0.00023798,2]
[357150278,1743798634843,-525.14689334,0.00023798,2]
[357150279,1743798634852,-505.44934721,0.00023798,2]
[357150280,1743798634861,-503.32319182,0.00023798,2]
[357150281,1743798634871,-522.89797555,0.00023798,2]
[357150282,1743798634880,-505.45155745,0.00023798,2]
[357150283,1743798634893,-256.80246518,0.00023798,2]
[357150284,1743798634903,-511.28464989,0.00023798,2]
[357150285,1743798634912,-524.60468049,0.00023798,2]
[357150286,1743798634921,-505.7132719,0.00023798,2]
[357150287,1743798634931,-511.18643644,0.00023798,2]
[357150288,1743798634940,-533.63653499,0.00023798,2]
[357150289,1743798634949,-505.24599256,0.00023798,2]
[357150290,1743798634958,-505.02751676,0.00023798,2]
[357150291,1743798635076,-515.59519499,0.00023798,2]
[357150292,1743798635087,-507.03389152,0.00023798,2]
[357150293,1743798635097,-504.59861282,0.00023798,2]
[357150294,1743798635106,-503.68744409,0.00023798,2]
[357150295,1743798635116,-505.80354612,0.00023798,2]
[357150296,1743798635125,-504.63440101,0.00023798,2]
[357150297,1743798635134,-503.06928216,0.00023798,2]
[357150298,1743798635146,-511.16793834,0.00023798,2]
[357150299,1743798635155,-518.18055539,0.00023798,2]
[357150300,1743798635165,-505.2191064,0.00023798,2]
[357150301,1743798635174,-451.56517012,0.00023798,2]
[357150302,1743798635183,-151.0,0.00023798,7]
[357150303,1743798635192,-511.13058637,0.00023798,2]
[357150304,1743798635201,-236.44729883,0.00023798,2]
[357150305,1743798635210,-504.62962731,0.00023798,2]
[357150306,1743798635220,-537.94667363,0.00023798,2]
[357150307,1743798635230,-503.57758707,0.00023798,2]
[357150308,1743798635239,-508.62719352,0.00023798,2]
[357150309,1743798635248,-500.0,0.00023798,2]
[357150310,1743798635257,-513.63290103,0.00023798,2]
[357150311,1743798635266,-503.13589954,0.00023798,2]
[357150312,1743798635276,-509.42991008,0.00023798,2]
[357150313,1743798635286,-509.82436209,0.00023798,2]
[357150314,1743798635295,-504.05312677,0.00023798,2]
[357150315,1743798635305,-500.0,0.00023798,2]
[357150316,1743798635314,-504.05443521,0.00023798,2]
[357150317,1743798635324,-504.41710558,0.00023798,2]
[357150318,1743798635333,-504.02334918,0.00023798,2]
[357150319,1743798635343,-540.75149856,0.00023798,2]
[357150320,1743798635353,-505.75970297,0.00023798,2]
[357150321,1743798635363,-249.336272,0.00023798,7]
[357150322,1743798635372,-586.42907306,0.00023798,2]
[357150323,1743798635382,-646.99416007,0.00023798,2]
[357150324,1743798635392,-504.7744122,0.00023798,2]
[357150325,1743798635402,-500.0,0.00023798,2]
[357150326,1743798635411,-480.71359442,0.00023798,2]
[357150327,1743798635421,-548.37219555,0.00023798,2]
[357150328,1743798635430,-151.0,0.00023798,7]
[357150329,1743798635439,-510.29938793,0.00023798,2]
[357150330,1743798635449,-510.82944539,0.00023798,2]
[357150331,1743798635459,-506.32633495,0.00023798,2]
[357150332,1743798635468,-505.40061316,0.00023798,2]
[357150333,1743798635478,-501.77597092,0.00023798,2]
[357150334,1743798635487,-505.24652991,0.00023798,2]
[357150335,1743798635497,-183.72070432,0.00023798,2]
[357150336,1743798635506,-236.60834836,0.00023798,2]
[357150337,1743798635516,-177.43396178,0.00023798,2]
[357150338,1743798635526,-503.29359784,0.00023798,2]
[357150339,1743798635536,-515.5893215,0.00023798,2]
[357150340,1743798635545,-505.16446593,0.00023798,2]
[357150341,1743798635554,-506.07267276,0.00023798,2]
[357150342,1743798635564,-506.13324942,0.00023798,2]
[357150343,1743798635574,-511.60192344,0.00023798,2]
[357150344,1743798635583,-501.68633479,0.00023798,2]
[357150345,1743798635593,-504.6468914,0.00023798,2]
[357150346,1743798635603,-504.6632722,0.00023798,2]
[357150347,1743798635612,-520.48917494,0.00023798,2]
[357150348,1743798635622,-500.77684577,0.00023798,2]
[357150349,1743798635631,-501.9452659,0.00023798,2]
[357150350,1743798635641,-507.64334753,0.00023798,2]
[357150351,1743798635650,-500.0,0.00023798,2]
[357150352,1743798635660,-503.34101558,0.00023798,2]
[357150353,1743798635670,-500.0,0.00023798,2]
[357150354,1743798635680,-500.0,0.00023798,2]
[357150355,1743798635690,-504.57932673,0.00023798,2]
[357150356,1743798635700,-500.0,0.00023798,2]
[357150357,1743798635711,-500.0,0.00023798,2]
[357150358,1743798635720,-157.687025,0.00023798,7]
[357150359,1743798635730,-157.687025,0.00023798,7]
[357150360,1743798635740,-504.43157063,0.00023798,2]
[357150361,1743798635749,-511.16334821,0.00023798,2]
[357150362,1743798635759,-500.0,0.00023798,2]
[357150363,1743798635768,-502.21433462,0.00023798,2]
[357150364,1743798635777,-588.33142657,0.00023798,2]
[357150365,1743798635786,-501.50454106,0.00023798,2]
[357150366,1743798635796,-500.86499046,0.00023798,2]
[357150367,1743798635805,-504.0696743,0.00023798,2]
[357150368,1743798635814,-500.0,0.00023798,2]
[357150369,1743798635823,-500.0,0.00023798,2]
[357150370,1743798635832,-600.86870682,0.00023798,2]
[357150371,1743798635842,-513.83020219,0.00023798,2]
[357150372,1743798635851,-527.36090914,0.00023798,2]
[357150373,1743798635860,-519.28496742,0.00023798,2]
[357150374,1743798635869,-504.02516859,0.00023798,2]
[357150375,1743798635878,-500.0,0.00023798,2]
[357150376,1743798635887,-505.21414564,0.00023798,2]
[357150377,1743798635897,-1029.88015653,0.00023798,2]
[357150378,1743798635906,-508.17689316,0.00023798,2]
[357150379,1743798635915,-506.73432057,0.00023798,2]
[357150380,1743798635924,-500.0,0.00023798,2]
[357150381,1743798635933,-531.92402902,0.00023798,2]
[357150382,1743798635942,-514.71624076,0.00023798,2]
[357150383,1743798635951,-522.39874869,0.00023798,2]
[357150384,1743798635961,-500.0,0.00023798,2]
[357150385,1743798635970,-500.0,0.00023798,2]
[357150386,1743798635979,-500.0,0.00023798,2]
[357150387,1743798635988,-517.67704994,0.00023798,2]
[357150388,1743798635999,-515.6201233,0.00023798,2]
[357150389,1743798636010,-527.77058005,0.00023798,2]
[357150390,1743798636019,-505.76457778,0.00023798,2]
[357150391,1743798636029,-500.0,0.00023798,2]
[357150392,1743798636039,-250.88916437,0.00023798,2]
[357150393,1743798636048,-518.52733404,0.00023798,2]
[357150394,1743798636058,-500.0,0.00023798,2]
[357150395,1743798636067,-500.0,0.00023798,2]
[357150396,1743798636077,-201.45755864,0.00023798,2]
[357150397,1743798636086,-500.0,0.00023798,2]
[357150398,1743798636095,-511.63678835,0.00023798,2]
[357150399,1743798636105,-500.0,0.00023798,2]
[357150400,1743798636114,-502.75989816,0.00023798,2]
[357150401,1743798636124,-500.0,0.00023798,2]
[357150402,1743798636133,-625.0,0.00023798,2]
[357150403,1743798636144,-519.09479051,0.00023798,2]
[357150404,1743798636153,-199.98913039,0.00023798,2]
[357150405,1743798636163,-519.92342398,0.00023798,2]
[357150406,1743798636173,-192.21975,0.00023798,2]
[357150407,1743798636182,-192.21975,0.00023798,2]
[357150408,1743798636191,-151.0,0.00023798,7]
[357150409,1743798636201,-151.0,0.00023798,7]
[357150410,1743798636210,-153.100707,0.00023798,7]
[357150411,1743798636220,-151.0,0.00023798,7]
[357150412,1743798636230,-151.0,0.00023798,7]
[357150413,1743798636239,-151.0,0.00023798,7]
[357150414,1743798636249,-151.0,0.00023798,7]
[357150415,1743798636258,-514.02565492,0.00023798,2]
[357150416,1743798636267,-596.25142447,0.00023798,2]
[357150417,1743798636277,-563.90140448,0.00023798,2]
[357150418,1743798636286,-151.0,0.00023798,7]
[357150419,1743798636295,-151.0,0.00023798,7]
[357150420,1743798636305,-529.06431882,0.00023798,2]
[357150421,1743798636314,-1666.34533472,0.000238,3]
[357150422,1743798636324,-268785.95033077,0.000238,2]
[357150423,1743798636339,-2268.10092545,0.000238,2]
[357150424,1743798636351,-303.09553512,0.000238,2]
[357150428,1743798638300,-479.11619399,0.00021936,2]
[357150429,1743798638358,-20.88380601,0.00021936,2]
[357150430,1743798638368,-483.18951652,0.00021936,2]
[357150431,1743798638378,-82.93095907,0.00021936,2]
[357150441,1743798640695,-417.06904093,0.00021936,2]
[357150442,1743798640706,-500.0,0.00021936,2]
[357150443,1743798640716,-500.0,0.00021936,2]
[357150444,1743798640727,-361.73373756,0.00021936,2]
[357150445,1743798640736,-500.0,0.00021936,2]
[357150446,1743798640746,-546.93172374,0.00021936,2]
[357150447,1743798640756,-98642.85320866,0.000238,2]
[357150448,1743798640766,-151.0,0.000238,7]
[357150449,1743798640776,-151.0,0.000238,7]
[357150450,1743798640786,-180.575337,0.000238,7]
[357150451,1743798640795,-151.0,0.000238,7]
[357150452,1743798640805,-151.0,0.000238,7]
[357150453,1743798640815,-151.0,0.000238,7]
[357150454,1743798640826,-151.0,0.000238,7]
[357150455,1743798640891,-157.687025,0.000238,7]
[357150456,1743798640902,-157.687025,0.000238,7]
[357150457,1743798640911,-157.687025,0.000238,7]
[357150458,1743798640920,-157.687025,0.000238,7]
[357150459,1743798640930,-192.21975,0.000238,2]
[357150460,1743798640940,-192.21975,0.000238,2]
[357150461,1743798640949,-192.21975,0.000238,2]
[357150462,1743798640959,-192.21975,0.000238,2]
[357150463,1743798640968,-151.0,0.000238,7]
[357150464,1743798640978,-155.234333,0.000238,7]
[357150465,1743798640988,-151.0,0.000238,7]
[357150466,1743798641000,-153.139688,0.000238,7]
[357150467,1743798641011,-500.0,0.00023837,2]
[357150468,1743798641020,-500.0,0.00023837,2]
[357150469,1743798641030,-500.0,0.00023837,2]
[357150470,1743798641041,-502.89,0.00023837,2]
[357150471,1743798641052,-500.0,0.00023837,2]
[357150472,1743798641062,-500.0,0.00023837,2]
[357150473,1743798641072,-500.0,0.00023837,2]
[357150474,1743798641083,-2259.0,0.0002384,2]
[357150475,1743798641093,-251.088,0.0002384,2]
[357150476,1743798641103,-401.0,0.0002384,2]
[357150477,1743798641112,-207.4,0.00023873,2]
[357150478,1743798641122,-92844.14263321,0.000239,2]
[357150479,1743798641132,-318.0,0.000239,3]
[357150480,1743798641141,-357.0,0.000239,3]
[357150481,1743798641151,-318.0,0.000239,3]
[357150482,1743798641160,-357.0,0.000239,3]
[357150483,1743798641170,-318.0,0.000239,3]
[357150484,1743798641179,-161.53312179,0.000239,3]
[357150485,1743798641188,-318.0,0.000239,3]
[357150486,1743798641198,-318.0,0.000239,3]
[357150487,1743798641207,-318.0,0.000239,3]
[357150488,1743798641216,-318.0,0.000239,3]
[357150489,1743798641226,-318.0,0.000239,3]
[357150490,1743798641235,-318.0,0.000239,3]
[357150491,1743798641244,-318.0,0.000239,3]
[357150492,1743798641254,-201.12854766,0.000239,3]
[357150493,1743798641263,-38099.5905121,0.00024,5]
[357150494,1743798641272,-40752.87412539,0.00024,30]
[357150495,1743798641282,-70000.0,0.00024,30]
[357150496,1743798641295,-151.0,0.00024,7]
[357150497,1743798641305,-151.0,0.00024,7]
[357150498,1743798641314,-151.0,0.00024,7]
[357150499,1743798641324,-151.0,0.00024,7]
[357150500,1743798641333,-151.0,0.00024,7]
[357150501,1743798641343,-151.0,0.00024,7]
[357150502,1743798641352,-151.0,0.00024,7]
[357150503,1743798641362,-151.0,0.00024,7]
[357150504,1743798641371,-151.0,0.00024,7]
[357150505,1743798641380,-157.687025,0.00024,7]
[357150506,1743798641389,-157.687025,0.00024,7]
[357150507,1743798641399,-157.687025,0.00024,7]
[357150508,1743798641408,-157.687025,0.00024,7]
[357150509,1743798641418,-157.687025,0.00024,7]
[357150510,1743798641428,-157.687025,0.00024,7]
[357150511,1743798641437,-192.21975,0.00024,2]
[357150512,1743798641446,-192.21975,0.00024,2]
[357150513,1743798641456,-192.21975,0.00024,2]
[357150514,1743798641465,-192.21975,0.00024,2]
[357150515,1743798641475,-192.21975,0.00024,2]
[357150516,1743798641484,-192.21975,0.00024,2]